fUSD/lending_fUSD_20260401
["ID","MTS","AMOUNT","RATE_DAILY","PERIOD"]
[419264024,1775075465964,-500.0,0.00035178,120]
[419264025,1775075465973,-500.0,0.00035178,120]
[419264026,1775075465982,-500.0,0.00035178,120]
[419264027,1775075465991,-500.0,0.00035178,120]
[419264028,1775075466001,-500.0,0.00035178,120]
[419264029,1775075466010,-500.0,0.00035178,120]
[419264030,1775075466020,-500.0,0.00035178,120]
[419264031,1775075466029,-500.0,0.00035178,120]
[419264032,1775075466038,-510.5719946,0.00035178,120]
[419264033,1775075466047,-500.0,0.00035178,120]
[419264034,1775075466057,-500.0,0.00035178,120]
[419264035,1775075466066,-500.0,0.00035178,120]
[419264036,1775075466076,-500.0,0.00035178,120]
[419264037,1775075466085,-500.0,0.00035178,120]
[419264038,1775075466094,-500.0,0.00035178,120]
[419264039,1775075466104,-500.0,0.00035178,120]
[419264040,1775075466113,-816.7574904,0.00035178,120]
[419264041,1775075466123,-500.0,0.00035178,120]
[419264042,1775075466133,-503.9929967,0.00035178,120]
[419264043,1775075466145,-796.715297,0.00035178,120]
[419264044,1775075466155,-500.0,0.00035178,120]
[419264045,1775075466166,-500.0,0.00035178,120]
[419264046,1775075466176,-500.0,0.00035178,120]
[419264047,1775075466186,-4100.0,0.00035178,120]
[419264048,1775075466197,-500.0,0.00035178,120]
[419264049,1775075466207,-4100.0,0.00035178,120]
[419264050,1775075466217,-500.0,0.00035178,120]
[419264051,1775075466227,-4100.0,0.00035178,120]
[419264052,1775075466239,-912.3112835,0.00035178,120]
[419264053,1775075466249,-4100.0,0.00035178,120]
[419264054,1775075466261,-4100.0,0.00035178,120]
[419264055,1775075466272,-4100.0,0.00035178,120]
[419264056,1775075466282,-500.0,0.00035178,120]
[419264057,1775075466292,-4100.0,0.00035178,120]
[419264058,1775075466301,-500.0,0.00035178,120]
[419264059,1775075466312,-4100.0,0.00035178,120]
[419264060,1775075466322,-500.0,0.00035178,120]
[419264061,1775075466332,-4100.0,0.00035178,120]
[419264062,1775075466343,-500.0,0.00035178,120]
[419264063,1775075466352,-4100.0,0.00035178,120]
[419264064,1775075466364,-500.0,0.00035178,120]
[419264065,1775075466374,-4100.0,0.00035178,120]
[419264066,1775075466384,-500.0,0.00035178,120]
[419264067,1775075466394,-4100.0,0.00035178,120]
[419264068,1775075466404,-500.0,0.00035178,120]
[419264069,1775075466414,-4100.0,0.00035178,120]
[419264070,1775075466423,-500.0,0.00035178,120]
[419264071,1775075466432,-4100.0,0.00035178,120]
[419264072,1775075466442,-500.0,0.00035178,120]
[419264073,1775075466453,-4100.0,0.00035178,120]
[419264074,1775075466463,-500.0,0.00035178,120]
[419264075,1775075466475,-4100.0,0.00035178,120]
[419264076,1775075466486,-500.0,0.00035178,120]
[419264077,1775075466496,-4100.0,0.00035178,120]
[419264078,1775075466506,-500.0,0.00035178,120]
[419264079,1775075466515,-4100.0,0.00035178,120]
[419264080,1775075466526,-500.0,0.00035178,120]
[419264081,1775075466537,-4100.0,0.00035178,120]
[419264082,1775075466547,-500.0,0.00035178,120]
[419264083,1775075466556,-4100.0,0.00035178,120]
[419264084,1775075466565,-500.0,0.00035178,120]
[419264085,1775075466575,-4100.0,0.00035178,120]
[419264086,1775075466584,-600.0,0.00035178,120]
[419264087,1775075466595,-500.0,0.00035178,120]
[419264088,1775075466605,-4100.0,0.00035178,120]
[419264089,1775075466615,-600.0,0.00035178,120]
[419264090,1775075466625,-500.0,0.00035178,120]
[419264091,1775075466634,-4100.0,0.00035178,120]
[419264092,1775075466644,-600.0,0.00035178,120]
[419264093,1775075466653,-500.0,0.00035178,120]
[419264094,1775075466663,-4100.0,0.00035178,120]
[419264095,1775075466672,-600.0,0.00035178,120]
[419264096,1775075466681,-500.0,0.00035178,120]
[419264097,1775075466691,-4100.0,0.00035178,120]
[419264098,1775075466700,-600.0,0.00035178,120]
[419264099,1775075466710,-500.0,0.00035178,120]
[419264100,1775075466719,-4100.0,0.00035178,120]
[419264101,1775075466728,-600.0,0.00035178,120]
[419264102,1775075466738,-500.0,0.00035178,120]
[419264103,1775075466747,-4100.0,0.00035178,120]
[419264104,1775075466757,-600.0,0.00035178,120]
[419264105,1775075466766,-500.0,0.00035178,120]
[419264106,1775075466776,-4100.0,0.00035178,120]
[419264107,1775075466785,-600.0,0.00035178,120]
[419264108,1775075466795,-500.0,0.00035178,120]
[419264109,1775075466805,-5336.540142,0.00035178,120]
[419264110,1775075466814,-500.0,0.00035178,120]
[419264111,1775075466823,-600.0,0.00035178,120]
[419264112,1775075466834,-920.1658584,0.00035178,120]
[419264113,1775075466843,-600.0,0.00035178,120]
[419264114,1775075466853,-600.0,0.00035178,120]
[419264115,1775075466863,-600.0,0.00035178,120]
[419264116,1775075466873,-600.0,0.00035178,120]
[419264117,1775075466883,-600.0,0.00035178,120]
[419264118,1775075466894,-600.0,0.00035178,120]
[419264119,1775075466905,-600.0,0.00035178,120]
[419264120,1775075466915,-600.0,0.00035178,120]
[419264121,1775075466925,-600.0,0.00035178,120]
[419264122,1775075466934,-600.0,0.00035178,120]
[419264123,1775075466944,-600.0,0.00035178,120]
[419264124,1775075466954,-600.0,0.00035178,120]
[419264125,1775075466964,-600.0,0.00035178,120]
[419264126,1775075466974,-600.0,0.00035178,120]
[419264127,1775075466985,-600.0,0.00035178,120]
[419264128,1775075466995,-600.0,0.00035178,120]
[419264129,1775075467007,-600.0,0.00035178,120]
[419264130,1775075467016,-600.0,0.00035178,120]
[419264131,1775075467027,-600.0,0.00035178,120]
[419264132,1775075467037,-754.4431861,0.00035178,120]
[419264133,1775075467047,-600.0,0.00035178,120]
[419264134,1775075467057,-600.0,0.00035178,120]
[419264135,1775075467067,-600.0,0.00035178,120]
[419264136,1775075467077,-600.0,0.00035178,120]
[419264137,1775075467087,-600.0,0.00035178,120]
[419264138,1775075467097,-600.0,0.00035178,120]
[419264139,1775075467106,-600.0,0.00035178,120]
[419264140,1775075467116,-600.0,0.00035178,120]
[419264141,1775075467127,-600.0,0.00035178,120]
[419264142,1775075467136,-600.0,0.00035178,120]
[419264143,1775075467146,-600.0,0.00035178,120]
[419264144,1775075467156,-600.0,0.00035178,120]
[419264145,1775075467166,-600.0,0.00035178,120]
[419264146,1775075467175,-600.0,0.00035178,120]
[419264147,1775075467184,-600.0,0.00035178,120]
[419264148,1775075467194,-600.0,0.00035178,120]
[419264149,1775075467204,-600.0,0.00035178,120]
[419264150,1775075467213,-600.0,0.00035178,120]
[419264151,1775075467223,-600.0,0.00035178,120]
[419264152,1775075467233,-600.0,0.00035178,120]
[419264153,1775075467242,-600.0,0.00035178,120]
[419264154,1775075467251,-600.0,0.00035178,120]
[419264155,1775075467260,-600.0,0.00035178,120]
[419264156,1775075467270,-600.0,0.00035178,120]
[419264157,1775075467279,-600.0,0.00035178,120]
[419264158,1775075467288,-600.0,0.00035178,120]
[419264159,1775075467298,-1140.5531861,0.00035178,120]
[419264160,1775075467307,-963.31646,0.000352,30]
[419264161,1775075467316,-2500.0,0.000353,14]
[419264162,1775075467325,-1014.48,0.00035313,120]
[419264163,1775075467335,-300.0,0.00035342,5]
[419264164,1775075467344,-1000.0,0.00035342,5]
[419264165,1775075467354,-432.0,0.00035345,30]
[419264166,1775075467363,-153.0,0.00035345,30]
[419264167,1775075467373,-985.0,0.00035345,30]
[419264168,1775075467382,-1327.0,0.00035345,30]
[419264169,1775075467392,-4030.0,0.00035345,30]
[419264170,1775075467401,-1211.0,0.00035345,30]
[419264171,1775075467411,-506.0,0.00035345,30]
[419264172,1775075467422,-150.0,0.00035373,7]
[419264173,1775075467432,-10000.0,0.000354,120]
[419264174,1775075467442,-963.31646,0.000354,30]
[419264175,1775075467451,-510.0,0.00035407,21]
[419264176,1775075467460,-1106.0,0.00035494,11]
[419264177,1775075467470,-7730.48,0.000355,30]
[419264178,1775075467479,-9127.68,0.000355,30]
[419264179,1775075467489,-152.0,0.00035507,2]
[419264180,1775075467498,-7126.81,0.000356,30]
[419264181,1775075467508,-789.32,0.000356,120]
[419264182,1775075467517,-963.31646,0.000356,30]
[419264183,1775075467527,-169459.83731012,0.0003561,2]
[419264184,1775075467537,-4473.76194692,0.0003561,2]
[419264185,1775075467546,-1981.80648635,0.00035616,120]
[419264186,1775075467556,-500.0,0.00035616,120]
[419264187,1775075467565,-250.0,0.00035616,120]
[419264188,1775075467575,-251.0,0.00035616,120]
[419264189,1775075467585,-4678.0,0.00035616,120]
[419264190,1775075467594,-300.61433345,0.00035616,30]
[419264191,1775075467603,-189.0,0.00035616,2]
[419264192,1775075467613,-1000.0,0.00035616,10]
[419264193,1775075467622,-1000.0,0.00035616,10]
[419264194,1775075467632,-1000.0,0.00035616,10]
[419264195,1775075467644,-1000.0,0.00035616,10]
[419264196,1775075467653,-1000.0,0.00035616,10]
[419264197,1775075467663,-1000.0,0.00035616,10]
[419264198,1775075467672,-1000.0,0.00035616,10]
[419264199,1775075467681,-1000.0,0.00035616,10]
[419264200,1775075467691,-1000.0,0.00035616,10]
[419264201,1775075467700,-1000.0,0.00035616,10]
[419264202,1775075467710,-1000.0,0.00035616,10]
[419264203,1775075467719,-1000.0,0.00035616,10]
[419264204,1775075467728,-1000.0,0.00035616,10]
[419264205,1775075467737,-1000.0,0.00035616,10]
[419264206,1775075467747,-1000.0,0.00035616,10]
[419264207,1775075467756,-1000.0,0.00035616,10]
[419264208,1775075467765,-1000.0,0.00035616,10]
[419264209,1775075467774,-318.0,0.00035616,10]
[419264210,1775075467783,-1014.48,0.00035625,120]
[419264211,1775075467792,-618.31475472,0.00035672,2]
[419264212,1775075467801,-1300.0,0.00035713,2]
[419264213,1775075467811,-1300.0,0.00035713,2]
[419264214,1775075467821,-1204.0,0.00035713,2]
[419264215,1775075467830,-204.24643178,0.0003575,5]
[419264216,1775075467840,-355.23,0.000358,120]
[419264217,1775075467850,-377.61,0.000358,120]
[419264218,1775075467861,-394.62,0.000358,120]
[419264219,1775075467870,-963.31646,0.000358,30]
[419264220,1775075467880,-152.0,0.00035822,7]
[419264221,1775075467891,-224.90834083,0.00035885,60]
[419264222,1775075467902,-1014.48,0.00035938,120]
[419264223,1775075467912,-1096.6,0.00035966,5]
[419264224,1775075467921,-1653.7957386,0.00036,10]
[419264225,1775075467931,-961.44989884,0.00036,2]
[419264226,1775075467941,-451.13358481,0.00036,120]
[419264227,1775075467950,-150.0,0.00036,120]
[419264228,1775075467959,-463.75395579,0.00036,120]
[419264229,1775075467968,-393.49142579,0.00036,120]
[419264230,1775075467976,-342.65510076,0.00036,120]
[419264231,1775075467986,-1957.82232135,0.00036,120]
[419264232,1775075467995,-647.06184253,0.00036,120]
[419264233,1775075468004,-281.59168138,0.00036,120]
[419264234,1775075468013,-7730.48,0.00036,30]
[419264235,1775075468022,-9127.68,0.00036,30]
[419264236,1775075468032,-217.6071096,0.00036,7]
[419264237,1775075468041,-35822.84,0.00036,2]
[419264238,1775075468051,-963.31646,0.00036,30]
[419264239,1775075468060,-3211.0548,0.00036,7]
[419264240,1775075468071,-1000.0,0.00036,120]
[419264241,1775075468081,-500.0,0.00036,120]
[419264242,1775075468091,-3000.0,0.00036,120]
[419264243,1775075468100,-5000.0,0.00036009,10]
[419264244,1775075468110,-5000.0,0.0003602,10]
[419264245,1775075468120,-1121.17,0.00036024,10]
[419264246,1775075468129,-3608.14,0.00036032,10]
[419264247,1775075468139,-5000.0,0.00036048,10]
[419264248,1775075468148,-1045.0,0.00036099,2]
[419264249,1775075468157,-2469.0,0.00036099,2]
[419264250,1775075468167,-5000.0,0.000361,10]
[419264251,1775075468177,-7126.81,0.000361,30]
[419264252,1775075468186,-5000.0,0.00036112,10]
[419264253,1775075468195,-500.0,0.00036133,120]
[419264254,1775075468204,-17647.99652714,0.00036139,2]
[419264255,1775075468214,-5000.0,0.00036163,10]
[419264256,1775075468224,-350.0,0.00036164,5]
[419264257,1775075468234,-963.31646,0.000362,30]
[419264258,1775075468244,-5000.0,0.00036221,10]
[419264259,1775075468253,-5000.0,0.00036232,10]
[419264260,1775075468262,-200.0,0.00036239,2]
[419264261,1775075468271,-200.0,0.00036239,2]
[419264262,1775075468280,-200.0,0.00036239,2]
[419264263,1775075468289,-800.0,0.00036239,13]
[419264264,1775075468298,-800.0,0.00036239,13]
[419264265,1775075468307,-800.0,0.00036239,13]
[419264266,1775075468317,-800.0,0.00036239,13]
[419264267,1775075468327,-800.0,0.00036239,13]
[419264268,1775075468337,-800.0,0.00036239,13]
[419264269,1775075468346,-800.0,0.00036239,13]
[419264270,1775075468356,-500.0,0.00036239,2]
[419264271,1775075468365,-500.0,0.00036239,2]
[419264272,1775075468375,-800.0,0.00036239,13]
[419264273,1775075468384,-800.0,0.00036239,13]
[419264274,1775075468393,-800.0,0.00036239,13]
[419264275,1775075468403,-500.0,0.00036239,2]
[419264276,1775075468412,-500.0,0.00036239,2]
[419264277,1775075468421,-500.0,0.00036239,2]
[419264278,1775075468431,-500.0,0.00036239,2]
[419264279,1775075468440,-500.0,0.00036239,2]
[419264280,1775075468449,-500.0,0.00036239,2]
[419264281,1775075468458,-500.0,0.00036239,2]
[419264282,1775075468467,-200.0,0.00036239,2]
[419264283,1775075468476,-200.0,0.00036239,2]
[419264284,1775075468485,-200.0,0.00036239,2]
[419264285,1775075468494,-200.0,0.00036239,2]
[419264286,1775075468503,-200.0,0.00036239,2]
[419264287,1775075468513,-200.0,0.00036239,2]
[419264288,1775075468523,-200.0,0.00036239,2]
[419264289,1775075468532,-200.0,0.00036239,2]
[419264290,1775075468542,-200.0,0.00036239,2]
[419264291,1775075468552,-200.0,0.00036239,2]
[419264292,1775075468562,-200.0,0.00036239,2]
[419264293,1775075468571,-200.0,0.00036239,2]
[419264294,1775075468580,-800.0,0.00036239,13]
[419264295,1775075468590,-800.0,0.00036239,13]
[419264296,1775075468599,-800.0,0.00036239,13]
[419264297,1775075468608,-800.0,0.00036239,13]
[419264298,1775075468619,-800.0,0.00036239,13]
[419264299,1775075468628,-800.0,0.00036239,13]
[419264300,1775075468638,-800.0,0.00036239,13]
[419264301,1775075468648,-800.0,0.00036239,13]
[419264302,1775075468658,-800.0,0.00036239,13]
[419264303,1775075468667,-370.0,0.00036239,2]
[419264304,1775075468678,-500.0,0.00036239,2]
[419264305,1775075468687,-500.0,0.00036239,2]
[419264306,1775075468697,-500.0,0.00036239,2]
[419264307,1775075468707,-500.0,0.00036239,2]
[419264308,1775075468715,-500.0,0.00036239,2]
[419264309,1775075468724,-500.0,0.00036239,2]
[419264310,1775075468733,-500.0,0.00036239,2]
[419264311,1775075468743,-500.0,0.00036239,2]
[419264312,1775075468752,-500.0,0.00036239,2]
[419264313,1775075468762,-500.0,0.00036239,2]
[419264314,1775075468771,-200.0,0.00036239,2]
[419264315,1775075468781,-200.0,0.00036239,2]
[419264316,1775075468791,-200.0,0.00036239,2]
[419264317,1775075468800,-200.0,0.00036239,2]
[419264318,1775075468809,-200.0,0.00036239,2]
[419264319,1775075468819,-200.0,0.00036239,2]
[419264320,1775075468828,-200.0,0.00036239,2]
[419264321,1775075468838,-500.0,0.00036239,2]
[419264322,1775075468848,-500.0,0.00036239,2]
[419264323,1775075468857,-500.0,0.00036239,2]
[419264324,1775075468866,-200.0,0.00036239,2]
[419264325,1775075468876,-200.0,0.00036239,2]
[419264326,1775075468885,-200.0,0.00036239,2]
[419264327,1775075468895,-200.0,0.00036239,2]
[419264328,1775075468906,-200.0,0.00036239,2]
[419264329,1775075468915,-800.0,0.00036239,13]
[419264330,1775075468924,-800.0,0.00036239,13]
[419264331,1775075468934,-800.0,0.00036239,13]
[419264332,1775075468943,-800.0,0.00036239,13]
[419264333,1775075468951,-800.0,0.00036239,13]
[419264334,1775075468960,-800.0,0.00036239,13]
[419264335,1775075468969,-800.0,0.00036239,13]
[419264336,1775075468978,-800.0,0.00036239,13]
[419264337,1775075468986,-800.0,0.00036239,13]
[419264338,1775075468995,-800.0,0.00036239,13]
[419264339,1775075469004,-800.0,0.00036239,13]
[419264340,1775075469013,-800.0,0.00036239,13]
[419264341,1775075469022,-800.0,0.00036239,13]
[419264342,1775075469032,-200.0,0.00036239,2]
[419264343,1775075469041,-200.0,0.00036239,2]
[419264344,1775075469050,-200.0,0.00036239,2]
[419264345,1775075469059,-200.0,0.00036239,2]
[419264346,1775075469068,-200.0,0.00036239,2]
[419264347,1775075469076,-200.0,0.00036239,2]
[419264348,1775075469086,-800.0,0.00036239,13]
[419264349,1775075469095,-800.0,0.00036239,13]
[419264350,1775075469104,-800.0,0.00036239,13]
[419264351,1775075469113,-500.0,0.00036239,2]
[419264352,1775075469122,-500.0,0.00036239,2]
[419264353,1775075469132,-500.0,0.00036239,2]
[419264354,1775075469142,-500.0,0.00036239,2]
[419264355,1775075469151,-500.0,0.00036239,2]
[419264356,1775075469160,-500.0,0.00036239,2]
[419264357,1775075469169,-500.0,0.00036239,2]
[419264358,1775075469178,-500.0,0.00036239,2]
[419264359,1775075469188,-500.0,0.00036239,2]
[419264360,1775075469198,-500.0,0.00036239,2]
[419264361,1775075469208,-500.0,0.00036239,2]
[419264362,1775075469218,-800.0,0.00036239,13]
[419264363,1775075469227,-800.0,0.00036239,13]
[419264364,1775075469239,-800.0,0.00036239,13]
[419264365,1775075469248,-800.0,0.00036239,13]
[419264366,1775075469257,-800.0,0.00036239,13]
[419264367,1775075469267,-800.0,0.00036239,13]
[419264368,1775075469277,-800.0,0.00036239,13]
[419264369,1775075469286,-800.0,0.00036239,13]
[419264370,1775075469296,-800.0,0.00036239,13]
[419264371,1775075469305,-800.0,0.00036239,13]
[419264372,1775075469314,-800.0,0.00036239,13]
[419264373,1775075469323,-800.0,0.00036239,13]
[419264374,1775075469332,-800.0,0.00036239,13]
[419264375,1775075469340,-800.0,0.00036239,13]
[419264376,1775075469350,-800.0,0.00036239,13]
[419264377,1775075469359,-800.0,0.00036239,13]
[419264378,1775075469368,-800.0,0.00036239,13]
[419264379,1775075469377,-800.0,0.00036239,13]
[419264380,1775075469386,-500.0,0.00036239,2]
[419264381,1775075469394,-500.0,0.00036239,2]
[419264382,1775075469403,-500.0,0.00036239,2]
[419264383,1775075469412,-500.0,0.00036239,2]
[419264384,1775075469421,-500.0,0.00036239,2]
[419264385,1775075469430,-500.0,0.00036239,2]
[419264386,1775075469440,-500.0,0.00036239,2]
[419264387,1775075469451,-500.0,0.00036239,2]
[419264388,1775075469460,-500.0,0.00036239,2]
[419264389,1775075469470,-500.0,0.00036239,2]
[419264390,1775075469480,-500.0,0.00036239,2]
[419264391,1775075469491,-500.0,0.00036239,2]
[419264392,1775075469500,-276.0,0.00036239,2]
[419264393,1775075469510,-800.0,0.00036239,13]
[419264394,1775075469519,-800.0,0.00036239,13]
[419264395,1775075469528,-800.0,0.00036239,13]
[419264396,1775075469538,-800.0,0.00036239,13]
[419264397,1775075469547,-800.0,0.00036239,13]
[419264398,1775075469557,-800.0,0.00036239,13]
[419264399,1775075469567,-800.0,0.00036239,13]
[419264400,1775075469578,-800.0,0.00036239,13]
[419264401,1775075469590,-800.0,0.00036239,13]
[419264402,1775075469604,-800.0,0.00036239,13]
[419264403,1775075469618,-800.0,0.00036239,13]
[419264404,1775075469630,-800.0,0.00036239,13]
[419264405,1775075469644,-800.0,0.00036239,13]
[419264406,1775075469654,-800.0,0.00036239,13]
[419264407,1775075469667,-500.0,0.00036239,2]
[419264408,1775075469681,-800.0,0.00036239,13]
[419264409,1775075469692,-800.0,0.00036239,13]
[419264410,1775075469705,-800.0,0.00036239,13]
[419264411,1775075469717,-800.0,0.00036239,13]
[419264412,1775075469729,-800.0,0.00036239,13]
[419264413,1775075469741,-800.0,0.00036239,13]
[419264414,1775075469752,-800.0,0.00036239,13]
[419264415,1775075469764,-685.0,0.00036239,13]
[419264416,1775075469776,-800.0,0.00036239,13]
[419264417,1775075469788,-800.0,0.00036239,13]
[419264418,1775075469800,-800.0,0.00036239,13]
[419264419,1775075469812,-471.0,0.00036239,13]
[419264420,1775075469825,-489.0,0.00036239,2]
[419264421,1775075469837,-800.0,0.00036239,13]
[419264422,1775075469849,-800.0,0.00036239,13]
[419264423,1775075469860,-800.0,0.00036239,13]
[419264424,1775075469871,-800.0,0.00036239,13]
[419264425,1775075469883,-800.0,0.00036239,13]
[419264426,1775075469893,-800.0,0.00036239,13]
[419264427,1775075469903,-800.0,0.00036239,13]
[419264428,1775075469915,-800.0,0.00036239,13]
[419264429,1775075469927,-800.0,0.00036239,13]
[419264430,1775075469939,-800.0,0.00036239,13]
[419264431,1775075469951,-800.0,0.00036239,13]
[419264432,1775075469961,-500.0,0.00036239,2]
[419264433,1775075469976,-500.0,0.00036239,2]
[419264434,1775075469987,-800.0,0.00036239,13]
[419264435,1775075469998,-800.0,0.00036239,13]
[419264436,1775075470010,-800.0,0.00036239,13]
[419264437,1775075470023,-500.0,0.00036239,2]
[419264438,1775075470035,-200.0,0.00036239,2]
[419264439,1775075470048,-200.0,0.00036239,2]
[419264440,1775075470059,-200.0,0.00036239,2]
[419264441,1775075470069,-800.0,0.00036239,13]
[419264442,1775075470079,-800.0,0.00036239,13]
[419264443,1775075470088,-800.0,0.00036239,13]
[419264444,1775075470099,-800.0,0.00036239,13]
[419264445,1775075470112,-800.0,0.00036239,13]
[419264446,1775075470125,-1014.48,0.0003625,120]
[419264447,1775075470136,-906.4,0.00036256,10]
[419264448,1775075470146,-5000.0,0.00036267,10]
[419264449,1775075470157,-500.0,0.00036322,2]
[419264450,1775075470169,-465.61,0.00036331,120]
[419264451,1775075470182,-5000.0,0.00036333,10]
[419264452,1775075470194,-432.0,0.00036345,30]
[419264453,1775075470205,-153.0,0.00036345,30]
[419264454,1775075470216,-985.0,0.00036345,30]
[419264455,1775075470227,-1327.0,0.00036345,30]
[419264456,1775075470238,-4030.0,0.00036345,30]
[419264457,1775075470249,-1211.0,0.00036345,30]
[419264458,1775075470260,-506.0,0.00036345,30]
[419264459,1775075470271,-5000.0,0.00036364,10]
[419264460,1775075470281,-172.12,0.00036371,2]
[419264461,1775075470292,-1400.0,0.00036392,2]
[419264462,1775075470303,-1400.0,0.00036392,2]
[419264463,1775075470314,-1283.0,0.00036392,2]
[419264464,1775075470325,-963.31646,0.000364,30]
[419264465,1775075470336,-16224.7792,0.000364,97]
[419264466,1775075470347,-2500.0,0.00036424,10]
[419264467,1775075470358,-150.0,0.0003643,2]
[419264468,1775075470369,-1500.0,0.00036438,5]
[419264469,1775075470381,-304.0,0.00036442,2]
[419264470,1775075470392,-374.4,0.00036449,10]
[419264471,1775075470403,-5000.0,0.00036453,10]
[419264472,1775075470415,-613.56,0.00036473,10]
[419264473,1775075470426,-1714.1,0.000365,10]
[419264474,1775075470437,-7730.48,0.000365,30]
[419264475,1775075470448,-9127.68,0.000365,30]
[419264476,1775075470459,-5000.0,0.0003653,10]
[419264477,1775075470469,-1303.7,0.00036551,30]
[419264478,1775075470480,-1014.48,0.00036562,120]
[419264479,1775075470491,-5000.0,0.00036563,10]
[419264480,1775075470501,-7126.81,0.000366,30]
[419264481,1775075470513,-963.31646,0.000366,30]
[419264482,1775075470524,-5000.0,0.00036625,10]
[419264483,1775075470537,-5000.0,0.00036627,10]
[419264484,1775075470547,-5000.0,0.00036634,10]
[419264485,1775075470558,-363.51560483,0.00036667,30]
[419264486,1775075470569,-6016.0,0.00036684,2]
[419264487,1775075470579,-5000.0,0.00036698,10]
[419264488,1775075470591,-5000.0,0.00036735,10]
[419264489,1775075470602,-233.66,0.0003674,10]
[419264490,1775075470612,-5000.0,0.0003676,10]
[419264491,1775075470624,-162.0,0.00036795,11]
[419264492,1775075470634,-5000.0,0.00036799,10]
[419264493,1775075470645,-1626.80485642,0.000368,2]
[419264494,1775075470655,-963.31646,0.000368,30]
[419264495,1775075470668,-1096.6,0.0003681,5]
[419264496,1775075470679,-5000.0,0.00036829,10]
[419264497,1775075470690,-1000.0,0.00036858,2]
[419264498,1775075470702,-1000.0,0.00036858,2]
[419264499,1775075470712,-1000.0,0.00036858,2]
[419264500,1775075470723,-1000.0,0.00036858,2]
[419264501,1775075470734,-1000.0,0.00036858,2]
[419264502,1775075470744,-1000.0,0.0003686,2]
[419264503,1775075470755,-1000.0,0.0003686,2]
[419264504,1775075470766,-1000.0,0.0003686,2]
[419264505,1775075470777,-1000.0,0.0003686,2]
[419264506,1775075470788,-1000.0,0.0003686,2]
[419264507,1775075470799,-1014.48,0.00036875,120]
[419264508,1775075470810,-1597.75,0.00036879,10]
[419264509,1775075470821,-151.0,0.00036885,60]
[419264510,1775075470832,-243.0,0.0003689,30]
[419264511,1775075470843,-676.62,0.00036894,10]
[419264512,1775075470854,-1812.88801621,0.000369,120]
[419264513,1775075470865,-174.0,0.000369,120]
[419264514,1775075470876,-172.0,0.000369,120]
[419264515,1775075470886,-1263.0,0.00036904,2]
[419264516,1775075470897,-1216.0,0.00036904,2]
[419264517,1775075470908,-925.0,0.00036904,2]
[419264518,1775075470919,-14265.94341701,0.0003691,2]
[419264519,1775075470930,-5000.0,0.00036911,10]
[419264520,1775075470941,-5000.0,0.00036947,10]
[419264521,1775075470951,-358.32,0.00036977,10]
[419264522,1775075470963,-300.0,0.00036986,22]
[419264523,1775075470972,-500.0,0.00036986,120]